fUSD/lending_fUSD_20260507
["ID","MTS","AMOUNT","RATE_DAILY","PERIOD"]
[421765004,1778120570000,-500.0,0.0001386,2]
[421765014,1778120572000,162.78,7.307e-05,2]
[421765015,1778120572000,162.78,8.769e-05,2]
[421765016,1778120572000,162.78,0.0001023,2]
[421765017,1778120572000,162.78,0.00011691,2]
[421765019,1778120791000,-236.83645165,0.00013298,2]
[421765018,1778120791000,-162.78,0.00013153,2]
[421765020,1778120874000,176.0,0.00011998,2]
[421765021,1778120971000,166.84,0.00010403,2]
[421765053,1778121032000,-456.0,0.00013667,2]
[421765052,1778121032000,-1916.63,0.00013631,2]
[421765056,1778121032000,-815.67,0.00013699,2]
[421765055,1778121032000,-163.13,0.00013699,2]
[421765057,1778121032000,-166.66,0.00013699,2]
[421765050,1778121032000,-9377.05796062,0.00013133,2]
[421765058,1778121032000,-200.0,0.00013699,2]
[421765064,1778121032000,-150.0,0.00013722,2]
[421765060,1778121032000,-163.03,0.000137,2]
[421765054,1778121032000,-196.26,0.00013699,2]
[421765051,1778121032000,-1679.79354835,0.00013298,2]
[421765025,1778121032000,-356.85910344,0.00012989,2]
[421765048,1778121032000,-194.00072509,0.00013033,2]
[421765046,1778121032000,-14382.54366993,0.0001299,2]
[421765047,1778121032000,-2635.66768948,0.0001299,2]
[421765041,1778121032000,-462.19315992,0.0001299,2]
[421765039,1778121032000,-322.59321388,0.0001299,2]
[421765036,1778121032000,-500.91157275,0.0001299,2]
[421765027,1778121032000,-2979.85069404,0.0001299,2]
[421765026,1778121032000,-300.0,0.00012989,2]
[421765063,1778121032000,-602.57091286,0.00013722,2]
[421765024,1778121032000,-843.14089656,0.00012989,2]
[421765049,1778121032000,-477.49203938,0.00013133,2]
[421765061,1778121032000,-150.0,0.00013721,2]
[421765077,1778121032000,-500.0,0.00013722,2]
[421765062,1778121032000,-500.0,0.00013722,2]
[421765070,1778121032000,-500.0,0.00013722,2]
[421765086,1778121032000,-1326.98,0.00013722,2]
[421765087,1778121032000,-999.99,0.00013722,2]
[421765083,1778121032000,-500.0,0.00013722,2]
[421765084,1778121032000,-490.9601438,0.00013722,2]
[421765078,1778121032000,-500.0,0.00013722,2]
[421765075,1778121032000,-500.0,0.00013722,2]
[421765074,1778121032000,-500.0,0.00013722,2]
[421765073,1778121032000,-500.0,0.00013722,2]
[421765080,1778121032000,-500.0,0.00013722,2]
[421765081,1778121032000,-504.83208442,0.00013722,2]
[421765085,1778121032000,-907.72,0.00013722,2]
[421765076,1778121032000,-500.0,0.00013722,2]
[421765072,1778121032000,-500.0,0.00013722,2]
[421765082,1778121032000,-502.17716493,0.00013722,2]
[421765071,1778121032000,-500.0,0.00013722,2]
[421765066,1778121032000,-154.70629453,0.00013722,2]
[421765068,1778121032000,-500.0,0.00013722,2]
[421765067,1778121032000,-500.0,0.00013722,2]
[421765065,1778121032000,-500.0,0.00013722,2]
[421765059,1778121032000,-718.99,0.00013699,2]
[421765069,1778121032000,-500.0,0.00013722,2]
[421765079,1778121032000,-500.0,0.00013722,2]
[421765089,1778121033000,-9999.99,0.00013766,2]
[421765088,1778121033000,-299.99,0.00013766,2]
[421765090,1778121033000,-9768.96760565,0.00013766,2]
[421765119,1778121038000,-200.0,0.00013767,2]
[421765137,1778121038000,-500.0,0.00013767,2]
[421765121,1778121038000,-500.0,0.00013767,2]
[421765117,1778121038000,-500.0,0.00013767,2]
[421765112,1778121038000,-500.0,0.00013767,2]
[421765127,1778121038000,-500.0,0.00013767,2]
[421765115,1778121038000,-500.0,0.00013767,2]
[421765139,1778121038000,-500.0,0.00013767,2]
[421765129,1778121038000,-500.0,0.00013767,2]
[421765125,1778121038000,-500.0,0.00013767,2]
[421765131,1778121038000,-500.0,0.00013767,2]
[421765133,1778121038000,-500.0,0.00013767,2]
[421765135,1778121038000,-500.0,0.00013767,2]
[421765109,1778121038000,-500.0,0.00013767,2]
[421765123,1778121038000,-500.0,0.00013767,2]
[421765108,1778121038000,-500.0,0.00013767,2]
[421765099,1778121038000,-242.02524427,0.00013766,2]
[421765110,1778121038000,-500.0,0.00013767,2]
[421765094,1778121038000,-247.8750156,0.00013766,2]
[421765093,1778121038000,-231.02239435,0.00013766,2]
[421765095,1778121038000,-943.95867498,0.00013766,2]
[421765096,1778121038000,-903.93718342,0.00013766,2]
[421765098,1778121038000,-150.99,0.00013766,2]
[421765103,1778121038000,-15761.02727451,0.00013766,2]
[421765111,1778121038000,-500.0,0.00013767,2]
[421765104,1778121038000,-500.0,0.00013767,2]
[421765100,1778121038000,-380.52932165,0.00013766,2]
[421765105,1778121038000,-500.0,0.00013767,2]
[421765097,1778121038000,-7904.219126,0.00013766,2]
[421765102,1778121038000,-2603.83148825,0.00013766,2]
[421765106,1778121038000,-500.0,0.00013767,2]
[421765107,1778121038000,-500.0,0.00013767,2]
[421765101,1778121038000,-5607.79667132,0.00013766,2]
[421765141,1778121038000,-500.0,0.00013767,2]
[421765148,1778121038000,-196.28147196,0.00013858,2]
[421765143,1778121038000,-2500.0,0.00013767,2]
[421765165,1778121038000,-151.0,0.0001386,2]
[421765169,1778121038000,-500.0,0.0001386,2]
[421765178,1778121038000,-579.59575985,0.00013866,2]
[421765172,1778121038000,-321.04705582,0.0001386,2]
[421765168,1778121038000,-500.0,0.0001386,2]
[421765175,1778121038000,-500.0,0.00013866,2]
[421765164,1778121038000,-151.0,0.0001386,2]
[421765179,1778121038000,-500.0,0.00013866,2]
[421765174,1778121038000,-507.67391504,0.00013866,2]
[421765176,1778121038000,-263.61461705,0.00013866,2]
[421765171,1778121038000,-500.0,0.0001386,2]
[421765173,1778121038000,-2080.17592889,0.0001386,2]
[421765177,1778121038000,-500.0,0.00013866,2]
[421765154,1778121038000,-500.0,0.0001386,2]
[421765170,1778121038000,-500.0,0.0001386,2]
[421765162,1778121038000,-151.0,0.0001386,2]
[421765159,1778121038000,-151.0,0.0001386,2]
[421765161,1778121038000,-151.0,0.0001386,2]
[421765160,1778121038000,-151.0,0.0001386,2]
[421765151,1778121038000,-500.0,0.0001386,2]
[421765149,1778121038000,-200.0,0.0001386,2]
[421765146,1778121038000,-772.36555245,0.00013768,2]
[421765147,1778121038000,-166.66,0.00013836,2]
[421765153,1778121038000,-500.0,0.0001386,2]
[421765155,1778121038000,-151.0,0.0001386,2]
[421765145,1778121038000,-5000.0,0.00013768,2]
[421765156,1778121038000,-500.0,0.0001386,2]
[421765167,1778121038000,-151.0,0.0001386,2]
[421765158,1778121038000,-344.03012488,0.0001386,2]
[421765166,1778121038000,-151.0,0.0001386,2]
[421765144,1778121038000,-42576.0076,0.00013768,2]
[421765163,1778121038000,-151.0,0.0001386,2]
[421765157,1778121038000,-151.0,0.0001386,2]
[421765226,1778121039000,-300.0,0.00014289,2]
[421765227,1778121039000,-300.0,0.00014289,2]
[421765223,1778121039000,-250.0,0.00014288,2]
[421765222,1778121039000,-323.63,0.0001428,2]
[421765216,1778121039000,-166.66,0.00013973,2]
[421765212,1778121039000,-11889.06004923,0.00013868,2]
[421765211,1778121039000,-2829.81285236,0.00013868,2]
[421765215,1778121039000,-1916.63,0.00013963,2]
[421765208,1778121039000,-2302068.81857566,0.00013868,2]
[421765220,1778121039000,-300.0,0.00014244,2]
[421765210,1778121039000,-2816.15708596,0.00013868,2]
[421765225,1778121039000,-1680.0,0.00014288,2]
[421765213,1778121039000,-500.0,0.00013873,2]
[421765221,1778121039000,-166.66,0.00014247,2]
[421765234,1778121039000,-166.66,0.00014384,2]
[421765233,1778121039000,-2500.0,0.00014308,2]
[421765232,1778121039000,-881.84,0.00014308,2]
[421765224,1778121039000,-397.12423556,0.00014288,2]
[421765230,1778121039000,-300.0,0.00014289,2]
[421765231,1778121039000,-1916.63,0.00014296,2]
[421765229,1778121039000,-300.0,0.00014289,2]
[421765219,1778121039000,-166.66,0.0001411,2]
[421765237,1778121039000,-162.78,0.00014614,2]
[421765236,1778121039000,-1000.0,0.00014421,2]
[421765243,1778121039000,-313.94691139,0.00014968,2]
[421765239,1778121039000,-250.0,0.00014628,2]
[421765247,1778121039000,-772.36555237,0.00015845,2]
[421765235,1778121039000,-2157.14243826,0.00014408,2]
[421765228,1778121039000,-300.0,0.00014289,2]
[421765218,1778121039000,-200.0,0.00014006,2]
[421765200,1778121039000,-500.0,0.00013867,2]
[421765209,1778121039000,-665.32180989,0.00013868,2]
[421765180,1778121039000,-541.13000817,0.00013866,2]
[421765182,1778121039000,-1000.0,0.00013867,2]
[421765181,1778121039000,-161776.1250886,0.00013867,2]
[421765193,1778121039000,-500.0,0.00013867,2]
[421765186,1778121039000,-1000.0,0.00013867,2]
[421765185,1778121039000,-1000.0,0.00013867,2]
[421765183,1778121039000,-1000.0,0.00013867,2]
[421765192,1778121039000,-500.0,0.00013867,2]
[421765184,1778121039000,-1000.0,0.00013867,2]
[421765189,1778121039000,-500.0,0.00013867,2]
[421765187,1778121039000,-1000.0,0.00013867,2]
[421765191,1778121039000,-500.0,0.00013867,2]
[421765190,1778121039000,-500.0,0.00013867,2]
[421765217,1778121039000,-578.11,0.00013986,2]
[421765188,1778121039000,-205.89508693,0.00013867,2]
[421765195,1778121039000,-150.40022105,0.00013867,2]
[421765194,1778121039000,-500.0,0.00013867,2]
[421765204,1778121039000,-500.0,0.00013867,2]
[421765207,1778121039000,-472.40575375,0.00013867,2]
[421765205,1778121039000,-500.0,0.00013867,2]
[421765197,1778121039000,-209.24110927,0.00013867,2]
[421765202,1778121039000,-500.0,0.00013867,2]
[421765241,1778121039000,-255.0,0.00014832,2]
[421765196,1778121039000,-500.0,0.00013867,2]
[421765199,1778121039000,-500.0,0.00013867,2]
[421765201,1778121039000,-500.0,0.00013867,2]
[421765203,1778121039000,-500.0,0.00013867,2]
[421765198,1778121039000,-500.0,0.00013867,2]
[421765206,1778121039000,-500.0,0.00013867,2]
[421765238,1778121039000,-250.0,0.00014628,2]
[421765214,1778121039000,-10000.0,0.00013887,2]
[421765245,1778121039000,-2319.72410669,0.00015504,2]
[421765277,1778121039000,-3292.0,0.00017288,2]
[421765285,1778121039000,-772.36555237,0.00017922,2]
[421765275,1778121039000,-2586.85809042,0.00017148,2]
[421765286,1778121039000,-164.82858638,0.00018,2]
[421765282,1778121039000,-2682.57183977,0.00017696,2]
[421765279,1778121039000,-212.14,0.000176,2]
[421765280,1778121039000,-425.99,0.000176,2]
[421765278,1778121039000,-736.0,0.0001733,2]
[421765283,1778121039000,-214.63993676,0.00017918,2]
[421765281,1778121039000,-1984.37,0.000176,2]
[421765288,1778121039000,-673.47575812,0.00018139,2]
[421765290,1778121039000,-150.0,0.0001822,2]
[421765287,1778121039000,-501.03097108,0.00018029,2]
[421765291,1778121039000,-2139.63035748,0.00018244,2]
[421765289,1778121039000,-164.82858638,0.000182,2]
[421765293,1778121039000,-150.0,0.00018348,2]
[421765296,1778121039000,-164.82858638,0.000184,2]
[421765292,1778121039000,-183.56,0.00018297,2]
[421765295,1778121039000,-157.37659745,0.00018378,2]
[421765294,1778121039000,-89415.24,0.00018356,2]
[421765298,1778121039000,-150.0,0.00018587,2]
[421765304,1778121039000,-200.0,0.00019092,2]
[421765299,1778121039000,-150.0,0.00018612,2]
[421765297,1778121039000,-799.3,0.0001841,2]
[421765302,1778121039000,-501.41004535,0.00018967,2]
[421765300,1778121039000,-186.0,0.00018743,2]
[421765301,1778121039000,-175.98961266,0.00018768,2]
[421765240,1778121039000,-1916.63,0.00014628,2]
[421765305,1778121039000,-500.0,0.00019178,2]
[421765284,1778121039000,-160.0,0.00017918,2]
[421765276,1778121039000,-250.0,0.00017164,2]
[421765303,1778121039000,-4609.0,0.00019017,2]
[421765263,1778121039000,-500.19971275,0.00016573,2]
[421765269,1778121039000,-2494.55939289,0.000166,2]
[421765242,1778121039000,-2236.95670848,0.00014956,2]
[421765244,1778121039000,-900.0,0.00015068,2]
[421765249,1778121039000,-395.51022397,0.0001596,2]
[421765250,1778121039000,-16747.02,0.00015977,2]
[421765259,1778121039000,-900.0,0.00016438,2]
[421765248,1778121039000,-707.84,0.00015852,2]
[421765260,1778121039000,-475.93,0.0001653,2]
[421765255,1778121039000,-9999.99,0.00016116,2]
[421765254,1778121039000,-2405.55389864,0.00016052,2]
[421765256,1778121039000,-11046.55,0.00016116,2]
[421765258,1778121039000,-183.56,0.00016264,2]
[421765253,1778121039000,-433.0,0.0001604,2]
[421765252,1778121039000,-279.73377946,0.00016,2]
[421765246,1778121039000,-2351.0,0.00015716,2]
[421765257,1778121039000,-475.93,0.00016256,2]
[421765251,1778121039000,-475.93,0.00015982,2]
[421765268,1778121039000,-78582.3757572,0.0001659,2]
[421765265,1778121039000,-500.0,0.00016573,2]
[421765264,1778121039000,-500.0,0.00016573,2]
[421765267,1778121039000,-500.37628274,0.00016573,2]
[421765270,1778121039000,-475.93,0.00016804,2]
[421765266,1778121039000,-500.0,0.00016573,2]
[421765273,1778121039000,-1001.21068364,0.00017121,2]
[421765272,1778121039000,-1010.77497534,0.00017121,2]
[421765261,1778121039000,-565.7993702,0.00016573,2]
[421765271,1778121039000,-475.95,0.00017078,2]
[421765262,1778121039000,-195.96062501,0.00016573,2]
[421765274,1778121039000,-1002.39746425,0.00017121,2]
[421765342,1778121040000,-322.0,0.00021,2]
[421765346,1778121040000,-200.0,0.00021294,2]
[421765344,1778121040000,-200.0,0.00021294,2]
[421765345,1778121040000,-200.0,0.00021294,2]
[421765354,1778121040000,-268.01,0.00022,14]
[421765336,1778121040000,-6453.0,0.00020918,2]
[421765343,1778121040000,-922.0,0.00021,2]
[421765334,1778121040000,-2758.87,0.00020548,2]
[421765338,1778121040000,-202.0,0.00021,2]
[421765337,1778121040000,-188.0,0.00021,2]
[421765339,1778121040000,-240.0,0.00021,2]
[421765353,1778121040000,-240.0,0.00022,2]
[421765348,1778121040000,-212.64,0.00021294,2]
[421765357,1778121040000,-322.0,0.00022,2]
[421765351,1778121040000,-188.0,0.00022,2]
[421765347,1778121040000,-200.0,0.00021294,2]
[421765350,1778121040000,-1172.25,0.00021918,5]
[421765352,1778121040000,-202.0,0.00022,2]
[421765355,1778121040000,-798.0,0.00022,2]
[421765356,1778121040000,-210.0,0.00022,2]
[421765359,1778121040000,-1000.0,0.00022007,7]
[421765358,1778121040000,-922.0,0.00022,2]
[421765364,1778121040000,-183.56,0.00022363,2]
[421765363,1778121040000,-799.3,0.00022353,2]
[421765362,1778121040000,-8204.55440281,0.00022234,2]
[421765335,1778121040000,-157.37659745,0.00020746,2]
[421765361,1778121040000,-157.99,0.00022111,2]
[421765349,1778121040000,-5000.0,0.00021918,2]
[421765340,1778121040000,-798.0,0.00021,2]
[421765330,1778121040000,-157.99,0.00020101,2]
[421765332,1778121040000,-183.56,0.0002033,2]
[421765365,1778121040000,-673.47575812,0.00022491,2]
[421765306,1778121040000,-500.0,0.00019178,2]
[421765307,1778121040000,-500.0,0.00019178,2]
[421765308,1778121040000,-500.0,0.00019178,2]
[421765314,1778121040000,-500.0,0.00019178,2]
[421765316,1778121040000,-2240.47,0.00019178,2]
[421765312,1778121040000,-500.0,0.00019178,2]
[421765311,1778121040000,-500.0,0.00019178,2]
[421765317,1778121040000,-162.76,0.00019669,2]
[421765318,1778121040000,-772.36555237,0.00019999,2]
[421765313,1778121040000,-500.0,0.00019178,2]
[421765310,1778121040000,-500.0,0.00019178,2]
[421765309,1778121040000,-500.0,0.00019178,2]
[421765315,1778121040000,-500.0,0.00019178,2]
[421765320,1778121040000,-188.0,0.0002,2]
[421765322,1778121040000,-240.0,0.0002,2]
[421765319,1778121040000,-984.0,0.0002,2]
[421765321,1778121040000,-202.0,0.0002,2]
[421765323,1778121040000,-798.0,0.0002,2]
[421765324,1778121040000,-210.0,0.0002,2]
[421765325,1778121040000,-322.0,0.0002,2]
[421765328,1778121040000,-925.0,0.0002,2]
[421765329,1778121040000,-881.84,0.00020031,2]
[421765326,1778121040000,-1323.0,0.0002,2]
[421765327,1778121040000,-922.0,0.0002,2]
[421765331,1778121040000,-2000.0,0.00020218,2]
[421765341,1778121040000,-210.0,0.00021,2]
[421765333,1778121040000,-799.3,0.00020381,2]
[421765360,1778121040000,-772.36555237,0.00022076,2]
[421765402,1778121040000,-150.0,0.00023985,4]
[421765367,1778121040000,-2000.0,0.00022746,2]
[421765398,1778121040000,-150.0,0.00023799,4]
[421765400,1778121040000,-150.0,0.00023932,4]
[421765399,1778121040000,-150.0,0.00023911,4]
[421765401,1778121040000,-150.0,0.00023985,4]
[421765404,1778121040000,-202.0,0.00024,2]
[421765403,1778121040000,-188.0,0.00024,2]
[421765407,1778121040000,-210.0,0.00024,2]
[421765418,1778121040000,-11828.19,0.00024174,2]
[421765409,1778121040000,-922.0,0.00024,2]
[421765410,1778121040000,-150.0,0.00024023,4]
[421765408,1778121040000,-322.0,0.00024,2]
[421765419,1778121040000,-150.0,0.00024246,4]
[421765415,1778121040000,-772.36555237,0.00024153,2]
[421765417,1778121040000,-1230.98,0.00024174,2]
[421765413,1778121040000,-157.99,0.00024121,2]
[421765412,1778121040000,-150.0,0.00024092,4]
[421765416,1778121040000,-1956.57,0.00024174,2]
[421765414,1778121040000,-150.0,0.00024134,4]
[421765421,1778121040000,-799.3,0.00024324,2]
[421765420,1778121040000,-150.0,0.00024253,4]
[421765422,1778121040000,-150.0,0.00024358,4]
[421765425,1778121040000,-150.0,0.00024414,4]
[421765424,1778121040000,-150.0,0.00024414,4]
[421765423,1778121040000,-183.56,0.00024396,2]
[421765427,1778121040000,-150.0,0.00024414,4]
[421765426,1778121040000,-150.0,0.00024414,4]
[421765366,1778121040000,-500.0,0.00022745,2]
[421765397,1778121040000,-150.0,0.00023771,4]
[421765396,1778121040000,-150.0,0.00023771,4]
[421765411,1778121040000,-150.0,0.00024092,4]
[421765406,1778121040000,-798.0,0.00024,2]
[421765379,1778121040000,-150.0,0.00023129,2]
[421765394,1778121040000,-150.0,0.00023687,4]
[421765378,1778121040000,-150.0,0.00023129,2]
[421765375,1778121040000,-922.0,0.00023,2]
[421765368,1778121040000,-229.66,0.00022994,2]
[421765380,1778121040000,-150.0,0.00023129,2]
[421765373,1778121040000,-210.0,0.00023,2]
[421765372,1778121040000,-798.0,0.00023,2]
[421765371,1778121040000,-240.0,0.00023,2]
[421765377,1778121040000,-157.37659747,0.00023113,2]
[421765370,1778121040000,-202.0,0.00023,2]
[421765374,1778121040000,-322.0,0.00023,2]
[421765376,1778121040000,-9035.0,0.0002301,2]
[421765381,1778121040000,-150.0,0.00023129,2]
[421765383,1778121040000,-150.0,0.00023129,2]
[421765369,1778121040000,-188.0,0.00023,2]
[421765405,1778121040000,-240.0,0.00024,2]
[421765382,1778121040000,-150.0,0.00023129,2]
[421765395,1778121040000,-150.0,0.00023771,4]
[421765391,1778121040000,-150.0,0.00023464,4]
[421765388,1778121040000,-150.0,0.00023352,4]
[421765387,1778121040000,-166.66,0.000233,2]
[421765390,1778121040000,-150.0,0.0002345,4]
[421765389,1778121040000,-150.0,0.0002345,4]
[421765385,1778121040000,-150.0,0.00023241,4]
[421765392,1778121040000,-150.0,0.00023576,4]
[421765386,1778121040000,-150.0,0.00023289,4]
[421765393,1778121040000,-150.0,0.00023611,4]
[421765384,1778121040000,-150.0,0.00023129,2]
[421765467,1778121041000,-219.08390333,0.00025611,4]
[421765472,1778121041000,-158.05999187,0.00025699,4]
[421765468,1778121041000,-709.38220764,0.00025611,2]
[421765469,1778121041000,-311.62284044,0.00025611,2]
[421765462,1778121041000,-150.0,0.00025377,4]
[421765466,1778121041000,-150.0,0.00025587,4]
[421765461,1778121041000,-150.0,0.00025363,4]
[421765460,1778121041000,-1047.0,0.00025311,2]
[421765463,1778121041000,-150.0,0.00025377,4]
[421765465,1778121041000,-150.0,0.00025538,4]
[421765471,1778121041000,-156.54486892,0.00025699,4]
[421765457,1778121041000,-150.0,0.00025217,4]
[421765464,1778121041000,-150.0,0.00025475,4]
[421765480,1778121041000,-450.51477892,0.0002571,2]
[421765478,1778121041000,-500.0,0.0002571,2]
[421765470,1778121041000,-156.66335347,0.00025699,4]
[421765473,1778121041000,-169.35882072,0.00025699,4]
[421765476,1778121041000,-221.06698802,0.00025699,4]
[421765477,1778121041000,-500.0,0.0002571,2]
[421765475,1778121041000,-158.068991,0.00025699,4]
[421765479,1778121041000,-500.0,0.0002571,2]
[421765474,1778121041000,-155.46959454,0.00025699,4]
[421765486,1778121041000,-501.47026417,0.00025773,2]
[421765488,1778121041000,-501.19146193,0.00025773,2]
[421765482,1778121041000,-848.74262064,0.00025711,2]
[421765489,1778121041000,-501.97983143,0.00025773,2]
[421765487,1778121041000,-529.69266044,0.00025773,2]
[421765484,1778121041000,-500.0,0.00025773,2]
[421765481,1778121041000,-1500000.0,0.00025711,2]
[421765458,1778121041000,-150.0,0.00025252,4]
[421765429,1778121041000,-150.0,0.00024574,4]
[421765456,1778121041000,-254.65712492,0.00025205,2]
[421765485,1778121041000,-150.0,0.00025773,2]
[421765430,1778121041000,-150.0,0.00024581,4]
[421765428,1778121041000,-150.0,0.0002447,4]
[421765431,1778121041000,-166.66,0.00024582,2]
[421765432,1778121041000,-150.0,0.00024658,4]
[421765435,1778121041000,-1000.0,0.00024658,2]
[421765434,1778121041000,-261.96,0.00024658,2]
[421765433,1778121041000,-150.0,0.00024658,2]
[421765441,1778121041000,-150.0,0.00024842,4]
[421765442,1778121041000,-150.0,0.00024896,4]
[421765440,1778121041000,-150.0,0.00024842,4]
[421765443,1778121041000,-150.0,0.00024916,4]
[421765438,1778121041000,-150.0,0.00024735,4]
[421765459,1778121041000,-2000.0,0.00025273,2]
[421765436,1778121041000,-150.0,0.00024693,4]
[421765437,1778121041000,-150.0,0.00024735,4]
[421765445,1778121041000,-209.48117401,0.00025,2]
[421765450,1778121041000,-928.04129991,0.00025,2]
[421765451,1778121041000,-150.0,0.00025028,4]
[421765452,1778121041000,-150.0,0.00025056,4]
[421765454,1778121041000,-150.0,0.00025056,4]
[421765453,1778121041000,-150.0,0.00025056,4]
[421765455,1778121041000,-150.0,0.0002514,4]
[421765444,1778121041000,-194.31055111,0.00025,2]
[421765446,1778121041000,-244.44701622,0.00025,2]
[421765449,1778121041000,-337.30975754,0.00025,2]
[421765447,1778121041000,-804.61764916,0.00025,2]
[421765448,1778121041000,-218.48052943,0.00025,2]
[421765439,1778121041000,-150.0,0.00024805,4]
[421765493,1778121041000,-500.0,0.00025773,2]
[421765539,1778121041000,-1016.15,0.00027397,2]
[421765490,1778121041000,-500.0,0.00025773,2]
[421765524,1778121041000,-1005.58876863,0.00026321,2]
[421765525,1778121041000,-581.0,0.00026575,2]
[421765526,1778121041000,-503.0,0.00026822,2]
[421765527,1778121041000,-673.47575812,0.00026844,2]
[421765529,1778121041000,-151.17418194,0.00027123,20]
[421765531,1778121041000,-166.66,0.00027146,2]
[421765530,1778121041000,-503.0,0.00027137,2]
[421765528,1778121041000,-350.0,0.00026868,2]
[421765532,1778121041000,-225.85034538,0.000273,30]
[421765534,1778121041000,-214.63993676,0.00027397,10]
[421765541,1778121041000,-30402.02,0.00027397,10]
[421765533,1778121041000,-225.85034537,0.000273,30]
[421765544,1778121041000,-67472.04,0.000274,7]
[421765519,1778121041000,-744.38615088,0.00026321,2]
[421765543,1778121041000,-21112.51,0.00027397,10]
[421765538,1778121041000,-1000.0,0.00027397,20]
[421765537,1778121041000,-300.0,0.00027397,2]
[421765535,1778121041000,-1500.0,0.00027397,2]
[421765540,1778121041000,-261.96,0.00027397,2]
[421765536,1778121041000,-158.13561199,0.00027397,4]
[421765546,1778121041000,-450.0,0.00027416,5]
[421765547,1778121041000,-1516.98085919,0.000278,7]
[421765549,1778121041000,-36097.1326992,0.00027872,2]
[421765545,1778121041000,-1734.91,0.000274,7]
[421765548,1778121041000,-2000.0,0.000278,2]
[421765550,1778121041000,-367.44543231,0.00027964,5]
[421765552,1778121041000,-165.05,0.00028,2]
[421765483,1778121041000,-501.44919593,0.00025773,2]
[421765551,1778121041000,-165.05,0.00028,2]
[421765523,1778121041000,-1136.51073093,0.00026321,2]
[421765542,1778121041000,-25335.01,0.00027397,10]
[421765520,1778121041000,-503.80512866,0.00026321,2]
[421765492,1778121041000,-500.0,0.00025773,2]
[421765521,1778121041000,-504.73489469,0.00026321,2]
[421765491,1778121041000,-339.23784331,0.00025773,2]
[421765494,1778121041000,-501.55567996,0.00025773,2]
[421765496,1778121041000,-500.0,0.00025773,2]
[421765497,1778121041000,-500.0,0.00025773,2]
[421765505,1778121041000,-10103.56541502,0.00026,2]
[421765498,1778121041000,-500.0,0.00025773,2]
[421765495,1778121041000,-500.0,0.00025773,2]
[421765502,1778121041000,-1230.98,0.00025786,2]
[421765501,1778121041000,-1956.57,0.00025786,2]
[421765499,1778121041000,-500.0,0.00025773,2]
[421765503,1778121041000,-11828.19,0.00025786,2]
[421765504,1778121041000,-166.66,0.00025864,2]
[421765500,1778121041000,-500.35777432,0.00025773,2]
[421765508,1778121041000,-150.45,0.00026136,2]
[421765522,1778121041000,-502.04883077,0.00026321,2]
[421765506,1778121041000,-150.0,0.00026027,4]
[421765517,1778121041000,-508.54186299,0.00026321,2]
[421765510,1778121041000,-1222.0,0.00026136,2]
[421765515,1778121041000,-508.22050108,0.00026321,2]
[421765514,1778121041000,-799.3,0.00026296,2]
[421765516,1778121041000,-250.0,0.00026321,2]
[421765518,1778121041000,-1005.73709075,0.00026321,2]
[421765511,1778121041000,-925.0,0.00026136,2]
[421765513,1778121041000,-772.36555237,0.0002623,2]